fUST/lending_fUST_20241108
["ID","MTS","AMOUNT","RATE_DAILY","PERIOD"]
[341646353,1731058239189,-500.0,0.00021917,2]
[341646354,1731058239200,-500.0,0.00021917,2]
[341646355,1731058239210,-500.0,0.00021917,2]
[341646356,1731058239220,-628.56391685,0.00021917,2]
[341646357,1731058239230,-500.0,0.00021917,2]
[341646358,1731058239239,-617.82,0.00021917,2]
[341646359,1731058239249,-500.0,0.00021917,2]
[341646360,1731058239260,-505.29120413,0.00021917,2]
[341646361,1731058239269,-500.0,0.00021917,2]
[341646362,1731058239279,-2356.99,0.00021917,2]
[341646363,1731058239289,-500.0,0.00021917,2]
[341646364,1731058239298,-500.0,0.00021917,2]
[341646365,1731058239308,-500.0,0.00021917,2]
[341646366,1731058239317,-500.0,0.00021917,2]
[341646367,1731058239327,-527.69475288,0.00021917,2]
[341646368,1731058239337,-500.0,0.00021917,2]
[341646369,1731058239346,-500.0,0.00021917,2]
[341646370,1731058239356,-523.52651081,0.00021917,2]
[341646371,1731058239365,-500.0,0.00021917,2]
[341646372,1731058239375,-500.0,0.00021917,2]
[341646373,1731058239385,-500.0,0.00021917,2]
[341646374,1731058239395,-500.0,0.00021917,2]
[341646375,1731058239404,-592.72778681,0.00021917,2]
[341646376,1731058239413,-500.0,0.00021917,2]
[341646377,1731058239422,-500.0,0.00021917,2]
[341646378,1731058239432,-500.0,0.00021917,2]
[341646380,1731058239441,-500.0,0.00021917,2]
[341646382,1731058239450,-244.62029407,0.00021917,2]
[341646383,1731058239459,-804.9,0.00021917,2]
[341646384,1731058239468,-500.0,0.00021917,2]
[341646385,1731058239477,-500.0,0.00021917,2]
[341646386,1731058239487,-500.0,0.00021917,2]
[341646387,1731058239496,-500.0,0.00021917,2]
[341646388,1731058239505,-500.0,0.00021917,2]
[341646389,1731058239514,-3210.27,0.00021917,2]
[341646390,1731058239524,-500.0,0.00021917,2]
[341646391,1731058239535,-500.0,0.00021917,2]
[341646392,1731058239544,-500.0,0.00021917,2]
[341646393,1731058239553,-321.25357624,0.00021917,2]
[341646394,1731058239563,-500.0,0.00021917,2]
[341646395,1731058239572,-500.0,0.00021917,2]
[341646396,1731058239581,-500.0,0.00021917,2]
[341646397,1731058239590,-500.0,0.00021917,2]
[341646398,1731058239600,-500.0,0.00021917,2]
[341646399,1731058239609,-500.0,0.00021917,2]
[341646400,1731058239618,-500.0,0.00021917,2]
[341646401,1731058239628,-502.71278832,0.00021917,2]
[341646402,1731058239636,-500.0,0.00021917,2]
[341646403,1731058239646,-3186.19,0.00021917,2]
[341646404,1731058239658,-500.0,0.00021917,2]
[341646405,1731058239667,-500.0,0.00021917,2]
[341646406,1731058239677,-500.0,0.00021917,2]
[341646407,1731058239686,-180.87726891,0.00021917,2]
[341646408,1731058239695,-166.666666,0.00021918,2]
[341646409,1731058239705,-471.0,0.00022,2]
[341646410,1731058239714,-1255.03891182,0.00022,2]
[341646411,1731058239724,-163.0,0.00022,2]
[341646412,1731058239733,-328.11750232,0.00022091,2]
[341646413,1731058239742,-500.0,0.00022173,2]
[341646414,1731058239752,-1290.16,0.0002219,2]
[341646415,1731058239761,-1290.16,0.0002219,2]
[341646416,1731058239770,-500.0,0.00022191,2]
[341646418,1731058239780,-500.0,0.00022191,2]
[341646419,1731058239790,-500.0,0.00022191,2]
[341646420,1731058239912,-500.0,0.00022191,2]
[341646421,1731058239922,-500.0,0.00022191,2]
[341646422,1731058239932,-432.18017343,0.00022191,2]
[341646423,1731058239942,-500.0,0.00022191,2]
[341646424,1731058239951,-500.0,0.00022191,2]
[341646425,1731058239960,-263.2837069,0.00022191,2]
[341646426,1731058239970,-500.0,0.00022191,2]
[341646427,1731058239980,-500.0,0.00022191,2]
[341646428,1731058239989,-500.0,0.00022191,2]
[341646429,1731058239998,-517.33548939,0.00022191,2]
[341646430,1731058240008,-500.0,0.00022191,2]
[341646431,1731058240018,-500.0,0.00022191,2]
[341646432,1731058240027,-500.0,0.00022191,2]
[341646433,1731058240036,-500.0,0.00022191,2]
[341646434,1731058240046,-500.0,0.00022191,2]
[341646435,1731058240055,-500.0,0.00022191,2]
[341646436,1731058240065,-500.0,0.00022191,2]
[341646437,1731058240075,-1009.33,0.00022191,2]
[341646438,1731058240085,-250.0,0.00022191,2]
[341646439,1731058240095,-500.0,0.00022191,2]
[341646440,1731058240104,-500.0,0.00022191,2]
[341646441,1731058240113,-500.0,0.00022191,2]
[341646442,1731058240124,-500.0,0.00022191,2]
[341646443,1731058240133,-500.0,0.00022191,2]
[341646444,1731058240143,-500.0,0.00022191,2]
[341646445,1731058240153,-894.65,0.00022191,2]
[341646446,1731058240162,-500.0,0.00022191,2]
[341646447,1731058240172,-500.0,0.00022191,2]
[341646448,1731058240181,-500.0,0.00022191,2]
[341646449,1731058240190,-500.0,0.00022191,2]
[341646450,1731058240201,-500.0,0.00022191,2]
[341646451,1731058240210,-500.0,0.00022191,2]
[341646452,1731058240219,-194.29626354,0.00022191,2]
[341646453,1731058240228,-500.0,0.00022191,2]
[341646454,1731058240237,-500.0,0.00022191,2]
[341646455,1731058240246,-500.0,0.00022191,2]
[341646456,1731058240256,-500.0,0.00022191,2]
[341646457,1731058240265,-500.0,0.00022191,2]
[341646458,1731058240275,-2111.02,0.00022191,2]
[341646459,1731058240284,-500.0,0.00022191,2]
[341646460,1731058240293,-714.74,0.00022191,2]
[341646461,1731058240303,-6939.05,0.00022191,2]
[341646462,1731058240312,-500.0,0.00022191,2]
[341646463,1731058240322,-500.0,0.00022191,2]
[341646464,1731058240331,-500.0,0.00022191,2]
[341646465,1731058240341,-6833.16,0.00022191,2]
[341646466,1731058240351,-662.8,0.00022191,2]
[341646467,1731058240361,-308.09432832,0.00022191,2]
[341646468,1731058240371,-272.09220424,0.00022191,2]
[341646469,1731058240380,-500.0,0.00022191,2]
[341646470,1731058240390,-500.0,0.00022191,2]
[341646471,1731058240401,-393.60869827,0.00022191,2]
[341646472,1731058240410,-500.0,0.00022191,2]
[341646473,1731058240419,-500.0,0.00022191,2]
[341646474,1731058240429,-500.0,0.00022191,2]
[341646475,1731058240439,-617.82,0.00022191,2]
[341646476,1731058240448,-500.0,0.00022191,2]
[341646477,1731058240457,-500.0,0.00022191,2]
[341646478,1731058240466,-2356.99,0.00022191,2]
[341646479,1731058240476,-500.0,0.00022191,2]
[341646480,1731058240485,-500.0,0.00022191,2]
[341646481,1731058240495,-500.0,0.00022191,2]
[341646482,1731058240505,-500.0,0.00022191,2]
[341646483,1731058240514,-500.0,0.00022191,2]
[341646484,1731058240523,-500.0,0.00022191,2]
[341646485,1731058240532,-500.0,0.00022191,2]
[341646486,1731058240542,-500.0,0.00022191,2]
[341646487,1731058240551,-500.0,0.00022191,2]
[341646488,1731058240560,-500.0,0.00022191,2]
[341646489,1731058240569,-500.0,0.00022191,2]
[341646490,1731058240578,-500.0,0.00022191,2]
[341646491,1731058240587,-804.9,0.00022191,2]
[341646492,1731058240596,-500.0,0.00022191,2]
[341646493,1731058240605,-500.0,0.00022191,2]
[341646494,1731058240614,-500.0,0.00022191,2]
[341646495,1731058240625,-500.0,0.00022191,2]
[341646496,1731058240634,-500.0,0.00022191,2]
[341646497,1731058240643,-3210.27,0.00022191,2]
[341646498,1731058240655,-500.0,0.00022191,2]
[341646499,1731058240664,-500.0,0.00022191,2]
[341646500,1731058240673,-500.0,0.00022191,2]
[341646501,1731058240682,-500.0,0.00022191,2]
[341646502,1731058240691,-500.0,0.00022191,2]
[341646503,1731058240703,-613.27546781,0.00022191,2]
[341646504,1731058240712,-500.0,0.00022191,2]
[341646505,1731058240722,-3186.19,0.00022191,2]
[341646506,1731058240734,-500.0,0.00022191,2]
[341646507,1731058240744,-500.0,0.00022191,2]
[341646508,1731058240754,-471.0,0.00022192,2]
[341646509,1731058240763,-328.11750232,0.00022365,2]
[341646510,1731058240773,-1290.16,0.00022375,2]
[341646511,1731058240782,-166.666666,0.00022431,2]
[341646512,1731058240791,-1558.268705,0.00022445,2]
[341646513,1731058240801,-1290.16,0.00022464,2]
[341646514,1731058240810,-1290.16,0.00022464,2]
[341646515,1731058240819,-283.61047324,0.00022464,2]
[341646516,1731058240829,-213.63704305,0.00022464,2]
[341646517,1731058240839,-500.0,0.00022465,2]
[341646518,1731058240848,-500.0,0.00022465,2]
[341646519,1731058240857,-500.0,0.00022465,2]
[341646520,1731058240867,-500.0,0.00022465,2]
[341646521,1731058240877,-500.0,0.00022465,2]
[341646522,1731058240886,-500.0,0.00022465,2]
[341646523,1731058240896,-500.0,0.00022465,2]
[341646524,1731058240905,-500.0,0.00022465,2]
[341646525,1731058240915,-500.0,0.00022465,2]
[341646526,1731058240925,-500.0,0.00022465,2]
[341646527,1731058240935,-500.0,0.00022465,2]
[341646528,1731058240944,-500.0,0.00022465,2]
[341646529,1731058240954,-500.0,0.00022465,2]
[341646530,1731058240964,-1009.33,0.00022465,2]
[341646531,1731058240975,-378.1070657,0.00022465,2]
[341646532,1731058240985,-500.0,0.00022465,2]
[341646533,1731058240994,-500.0,0.00022465,2]
[341646534,1731058241004,-500.0,0.00022465,2]
[341646535,1731058241014,-500.0,0.00022465,2]
[341646536,1731058241023,-500.0,0.00022465,2]
[341646537,1731058241033,-500.0,0.00022465,2]
[341646538,1731058241043,-894.65,0.00022465,2]
[341646539,1731058241053,-500.0,0.00022465,2]
[341646540,1731058241063,-500.0,0.00022465,2]
[341646541,1731058241072,-500.0,0.00022465,2]
[341646542,1731058241083,-500.0,0.00022465,2]
[341646543,1731058241092,-500.0,0.00022465,2]
[341646544,1731058241102,-500.0,0.00022465,2]
[341646545,1731058241111,-500.0,0.00022465,2]
[341646546,1731058241122,-500.0,0.00022465,2]
[341646547,1731058241131,-500.0,0.00022465,2]
[341646548,1731058241140,-500.0,0.00022465,2]
[341646549,1731058241150,-500.0,0.00022465,2]
[341646550,1731058241160,-2111.02,0.00022465,2]
[341646551,1731058241169,-500.0,0.00022465,2]
[341646552,1731058241179,-714.74,0.00022465,2]
[341646553,1731058241189,-6939.05,0.00022465,2]
[341646554,1731058241201,-441.88722109,0.00022465,2]
[341646555,1731058241210,-488.58438961,0.00022465,2]
[341646556,1731058241219,-500.0,0.00022465,2]
[341646557,1731058241229,-6833.16,0.00022465,2]
[341646558,1731058241238,-662.8,0.00022465,2]
[341646559,1731058241248,-500.0,0.00022465,2]
[341646560,1731058241258,-282.07478881,0.00022465,2]
[341646561,1731058241268,-500.0,0.00022465,2]
[341646562,1731058241277,-500.0,0.00022465,2]
[341646563,1731058241287,-500.0,0.00022465,2]
[341646564,1731058241296,-617.82,0.00022465,2]
[341646565,1731058241306,-500.0,0.00022465,2]
[341646566,1731058241315,-500.0,0.00022465,2]
[341646567,1731058241325,-2356.99,0.00022465,2]
[341646568,1731058241334,-500.0,0.00022465,2]
[341646569,1731058241344,-500.0,0.00022465,2]
[341646570,1731058241353,-500.0,0.00022465,2]
[341646571,1731058241363,-150.24173145,0.00022465,2]
[341646572,1731058241373,-500.0,0.00022465,2]
[341646573,1731058241383,-500.0,0.00022465,2]
[341646574,1731058241392,-500.0,0.00022465,2]
[341646575,1731058241403,-500.0,0.00022465,2]
[341646576,1731058241412,-500.0,0.00022465,2]
[341646577,1731058241422,-500.0,0.00022465,2]
[341646578,1731058241431,-500.0,0.00022465,2]
[341646579,1731058241440,-500.0,0.00022465,2]
[341646580,1731058241450,-804.9,0.00022465,2]
[341646581,1731058241459,-500.0,0.00022465,2]
[341646582,1731058241468,-500.0,0.00022465,2]
[341646583,1731058241477,-500.0,0.00022465,2]
[341646584,1731058241487,-500.0,0.00022465,2]
[341646585,1731058241497,-500.0,0.00022465,2]
[341646586,1731058241506,-3210.27,0.00022465,2]
[341646587,1731058241516,-500.0,0.00022465,2]
[341646588,1731058241526,-500.0,0.00022465,2]
[341646589,1731058241535,-500.0,0.00022465,2]
[341646590,1731058241545,-500.0,0.00022465,2]
[341646591,1731058241555,-500.0,0.00022465,2]
[341646592,1731058241564,-500.0,0.00022465,2]
[341646593,1731058241573,-3186.19,0.00022465,2]
[341646594,1731058241583,-500.0,0.00022465,2]
[341646595,1731058241592,-328.11750232,0.00022639,2]
[341646596,1731058241601,-1290.16,0.00022738,2]
[341646597,1731058241610,-500.0,0.00022739,2]
[341646598,1731058241621,-500.0,0.00022739,2]
[341646599,1731058241631,-500.0,0.00022739,2]
[341646600,1731058241640,-500.0,0.00022739,2]
[341646601,1731058241650,-500.0,0.00022739,2]
[341646602,1731058241662,-500.0,0.00022739,2]
[341646603,1731058241672,-500.0,0.00022739,2]
[341646604,1731058241682,-500.0,0.00022739,2]
[341646605,1731058241691,-500.0,0.00022739,2]
[341646606,1731058241702,-572.14790739,0.00022739,2]
[341646607,1731058241711,-500.0,0.00022739,2]
[341646608,1731058241720,-535.79637136,0.00022739,2]
[341646609,1731058241730,-1009.33,0.00022739,2]
[341646610,1731058241739,-348.29119973,0.00022739,2]
[341646611,1731058241748,-500.0,0.00022739,2]
[341646612,1731058241758,-495.94192153,0.00022739,2]
[341646613,1731058241767,-500.0,0.00022739,2]
[341646614,1731058241777,-500.0,0.00022739,2]
[341646615,1731058241786,-500.0,0.00022739,2]
[341646616,1731058241795,-894.65,0.00022739,2]
[341646617,1731058241805,-500.0,0.00022739,2]
[341646618,1731058241814,-500.0,0.00022739,2]
[341646619,1731058241823,-500.0,0.00022739,2]
[341646620,1731058241832,-500.0,0.00022739,2]
[341646621,1731058241842,-500.0,0.00022739,2]
[341646622,1731058241851,-500.0,0.00022739,2]
[341646623,1731058241861,-500.0,0.00022739,2]
[341646624,1731058241873,-500.0,0.00022739,2]
[341646625,1731058241882,-500.0,0.00022739,2]
[341646626,1731058241892,-500.0,0.00022739,2]
[341646627,1731058241901,-500.0,0.00022739,2]
[341646628,1731058241910,-2111.02,0.00022739,2]
[341646629,1731058241920,-500.0,0.00022739,2]
[341646630,1731058241929,-714.74,0.00022739,2]
[341646631,1731058241939,-6939.05,0.00022739,2]
[341646632,1731058241949,-322.36548605,0.00022739,2]
[341646633,1731058241958,-6833.16,0.00022739,2]
[341646634,1731058241968,-662.8,0.00022739,2]
[341646635,1731058241977,-500.0,0.00022739,2]
[341646636,1731058241988,-500.0,0.00022739,2]
[341646637,1731058241998,-500.0,0.00022739,2]
[341646638,1731058242008,-617.82,0.00022739,2]
[341646639,1731058242018,-500.0,0.00022739,2]
[341646640,1731058242029,-500.0,0.00022739,2]
[341646641,1731058242039,-2356.99,0.00022739,2]
[341646642,1731058242049,-500.0,0.00022739,2]
[341646643,1731058242060,-500.0,0.00022739,2]
[341646644,1731058242069,-500.0,0.00022739,2]
[341646645,1731058242079,-500.0,0.00022739,2]
[341646646,1731058242088,-500.0,0.00022739,2]
[341646647,1731058242099,-500.0,0.00022739,2]
[341646648,1731058242108,-495.42779697,0.00022739,2]
[341646649,1731058242118,-500.0,0.00022739,2]
[341646650,1731058242129,-500.0,0.00022739,2]
[341646651,1731058242139,-500.0,0.00022739,2]
[341646652,1731058242154,-804.9,0.00022739,2]
[341646653,1731058242165,-500.0,0.00022739,2]
[341646654,1731058242177,-580.42209627,0.00022739,2]
[341646655,1731058242187,-500.0,0.00022739,2]
[341646656,1731058242199,-500.0,0.00022739,2]
[341646657,1731058242210,-3210.27,0.00022739,2]
[341646658,1731058242220,-500.0,0.00022739,2]
[341646659,1731058242230,-500.0,0.00022739,2]
[341646660,1731058242240,-500.0,0.00022739,2]
[341646661,1731058242251,-500.0,0.00022739,2]
[341646662,1731058242260,-500.0,0.00022739,2]
[341646663,1731058242270,-500.0,0.00022739,2]
[341646664,1731058242279,-3186.19,0.00022739,2]
[341646665,1731058242290,-500.0,0.00022739,2]
[341646666,1731058242304,-328.11750232,0.00022913,2]
[341646667,1731058242314,-500.0,0.00022928,2]
[341646668,1731058242324,-166.666666,0.00022944,2]
[341646669,1731058242334,-2019.16079209,0.00023,2]
[341646670,1731058242343,-5529.38932697,0.00023,2]
[341646671,1731058242352,-1290.16,0.00023012,2]
[341646672,1731058242362,-1290.16,0.00023012,2]
[341646675,1731058242464,-500.0,0.00023013,2]
[341646676,1731058242475,-500.0,0.00023013,2]
[341646677,1731058242485,-500.0,0.00023013,2]
[341646678,1731058242494,-500.0,0.00023013,2]
[341646679,1731058242504,-500.0,0.00023013,2]
[341646681,1731058242514,-500.0,0.00023013,2]
[341646683,1731058242523,-362.13959531,0.00023013,2]
[341646685,1731058242532,-500.0,0.00023013,2]
[341646687,1731058242542,-500.0,0.00023013,2]
[341646688,1731058242551,-1009.33,0.00023013,2]
[341646689,1731058242561,-500.0,0.00023013,2]
[341646690,1731058242570,-500.0,0.00023013,2]
[341646691,1731058242579,-500.0,0.00023013,2]
[341646692,1731058242589,-500.0,0.00023013,2]
[341646693,1731058242598,-894.65,0.00023013,2]
[341646694,1731058242608,-500.0,0.00023013,2]
[341646695,1731058242617,-500.0,0.00023013,2]
[341646696,1731058242627,-500.0,0.00023013,2]
[341646698,1731058242636,-500.0,0.00023013,2]
[341646700,1731058242645,-500.0,0.00023013,2]
[341646701,1731058242657,-500.0,0.00023013,2]
[341646702,1731058242667,-500.0,0.00023013,2]
[341646703,1731058242676,-500.0,0.00023013,2]
[341646704,1731058242686,-500.0,0.00023013,2]
[341646705,1731058242695,-500.0,0.00023013,2]
[341646707,1731058242705,-279.2713281,0.00023013,2]
[341646709,1731058242714,-2111.02,0.00023013,2]
[341646711,1731058242724,-500.0,0.00023013,2]
[341646713,1731058242733,-714.74,0.00023013,2]
[341646714,1731058242743,-6939.05,0.00023013,2]
[341646715,1731058242752,-6833.16,0.00023013,2]
[341646716,1731058242762,-662.8,0.00023013,2]
[341646718,1731058242771,-500.0,0.00023013,2]
[341646719,1731058242781,-500.0,0.00023013,2]
[341646720,1731058242791,-617.82,0.00023013,2]
[341646721,1731058242800,-500.0,0.00023013,2]
[341646722,1731058242810,-2356.99,0.00023013,2]
[341646724,1731058242819,-500.0,0.00023013,2]
[341646726,1731058242827,-500.0,0.00023013,2]
[341646727,1731058242837,-500.0,0.00023013,2]
[341646728,1731058242846,-500.0,0.00023013,2]
[341646729,1731058242858,-500.0,0.00023013,2]
[341646730,1731058242869,-500.0,0.00023013,2]
[341646731,1731058242879,-500.0,0.00023013,2]
[341646732,1731058242888,-804.9,0.00023013,2]
[341646733,1731058242898,-242.32908628,0.00023013,2]
[341646734,1731058242908,-500.0,0.00023013,2]
[341646735,1731058242917,-188.14129703,0.00023013,2]
[341646736,1731058242927,-3210.27,0.00023013,2]
[341646737,1731058242937,-500.0,0.00023013,2]
[341646738,1731058242946,-500.0,0.00023013,2]
[341646740,1731058242955,-500.0,0.00023013,2]
[341646741,1731058242965,-500.0,0.00023013,2]
[341646742,1731058242974,-500.0,0.00023013,2]
[341646743,1731058242984,-500.0,0.00023013,2]
[341646744,1731058242993,-3186.19,0.00023013,2]
[341646746,1731058243002,-500.0,0.00023013,2]
[341646748,1731058243012,-471.0,0.00023014,2]
[341646750,1731058243021,-164.0,0.00023014,2]
[341646751,1731058243031,-500.0,0.000231,2]
[341646752,1731058243040,-500.0,0.000231,2]
[341646753,1731058243050,-500.0,0.000231,2]
[341646755,1731058243059,-501.12172304,0.000231,2]
[341646756,1731058243069,-785.36889013,0.00023194,2]
[341646757,1731058243078,-1290.16,0.00023286,2]
[341646758,1731058243087,-1290.16,0.00023286,2]
[341646759,1731058243097,-500.0,0.00023287,2]
[341646760,1731058243107,-500.0,0.00023287,2]
[341646762,1731058243116,-500.0,0.00023287,2]
[341646763,1731058243127,-500.0,0.00023287,2]
[341646764,1731058243137,-500.0,0.00023287,2]
[341646765,1731058243146,-500.0,0.00023287,2]
[341646766,1731058243156,-500.0,0.00023287,2]
[341646767,1731058243166,-1009.33,0.00023287,2]
[341646768,1731058243175,-500.0,0.00023287,2]
[341646769,1731058243184,-500.0,0.00023287,2]
[341646770,1731058243194,-500.0,0.00023287,2]
[341646771,1731058243205,-500.0,0.00023287,2]
[341646772,1731058243214,-894.65,0.00023287,2]
[341646773,1731058243224,-500.0,0.00023287,2]
[341646774,1731058243234,-500.0,0.00023287,2]
[341646775,1731058243244,-500.0,0.00023287,2]
[341646776,1731058243254,-500.0,0.00023287,2]
[341646777,1731058243263,-500.0,0.00023287,2]
[341646778,1731058243272,-500.0,0.00023287,2]
[341646779,1731058243282,-500.0,0.00023287,2]
[341646780,1731058243291,-500.0,0.00023287,2]
[341646781,1731058243300,-500.0,0.00023287,2]
[341646782,1731058243310,-2111.02,0.00023287,2]
[341646783,1731058243319,-500.0,0.00023287,2]
[341646784,1731058243329,-714.74,0.00023287,2]
[341646785,1731058243339,-6939.05,0.00023287,2]
[341646786,1731058243348,-6833.16,0.00023287,2]
[341646787,1731058243358,-662.8,0.00023287,2]
[341646788,1731058243367,-500.0,0.00023287,2]
[341646789,1731058243377,-500.0,0.00023287,2]
[341646790,1731058243387,-617.82,0.00023287,2]
[341646791,1731058243397,-500.0,0.00023287,2]
[341646792,1731058243406,-2356.99,0.00023287,2]
[341646793,1731058243416,-500.0,0.00023287,2]
[341646794,1731058243425,-500.0,0.00023287,2]
[341646795,1731058243435,-500.0,0.00023287,2]
[341646796,1731058243445,-500.0,0.00023287,2]
[341646797,1731058243455,-804.9,0.00023287,2]
[341646798,1731058243464,-500.0,0.00023287,2]
[341646799,1731058243474,-3210.27,0.00023287,2]
[341646800,1731058243484,-500.0,0.00023287,2]
[341646801,1731058243493,-500.0,0.00023287,2]
[341646802,1731058243503,-500.0,0.00023287,2]
[341646803,1731058243513,-500.0,0.00023287,2]
[341646804,1731058243524,-500.0,0.00023287,2]
[341646805,1731058243534,-3186.19,0.00023287,2]
[341646806,1731058243543,-500.0,0.00023288,2]
[341646807,1731058243552,-500.0,0.00023288,2]
[341646808,1731058243562,-500.0,0.00023288,2]
[341646809,1731058243571,-173.18722148,0.00023288,2]
[341646810,1731058243581,-500.0,0.00023288,2]
[341646811,1731058243590,-500.0,0.00023288,2]
[341646812,1731058243599,-500.0,0.00023288,2]
[341646813,1731058243610,-500.0,0.00023288,2]
[341646814,1731058243627,-166.666666,0.00023456,2]
[341646815,1731058243640,-1290.16,0.0002356,2]
[341646816,1731058243650,-1290.16,0.0002356,2]
[341646817,1731058243662,-500.0,0.00023561,2]
[341646818,1731058243671,-500.0,0.00023561,2]
[341646819,1731058243681,-500.0,0.00023561,2]
[341646820,1731058243690,-627.5130378,0.00023561,2]
[341646821,1731058243699,-500.0,0.00023561,2]
[341646822,1731058243708,-500.0,0.00023561,2]
[341646823,1731058243717,-1009.33,0.00023561,2]
[341646824,1731058243727,-500.0,0.00023561,2]
[341646825,1731058243737,-500.0,0.00023561,2]
[341646826,1731058243747,-500.0,0.00023561,2]
[341646827,1731058243757,-500.0,0.00023561,2]
[341646828,1731058243765,-894.65,0.00023561,2]
[341646829,1731058243775,-316.02295136,0.00023561,2]
[341646830,1731058243784,-500.0,0.00023561,2]
[341646831,1731058243793,-500.0,0.00023561,2]
[341646832,1731058243803,-256.1199613,0.00023561,2]
[341646833,1731058243812,-500.0,0.00023561,2]
[341646834,1731058243822,-500.0,0.00023561,2]
[341646835,1731058243830,-500.0,0.00023561,2]
[341646836,1731058243840,-457.74302646,0.00023561,2]
[341646837,1731058243849,-2111.02,0.00023561,2]
[341646838,1731058243858,-594.47187598,0.00023561,2]
[341646839,1731058243867,-714.74,0.00023561,2]
[341646840,1731058243877,-6939.05,0.00023561,2]
[341646841,1731058243886,-6833.16,0.00023561,2]
[341646842,1731058243895,-662.8,0.00023561,2]
[341646843,1731058243905,-500.0,0.00023561,2]
[341646844,1731058243914,-500.0,0.00023561,2]
[341646845,1731058243924,-617.82,0.00023561,2]
[341646846,1731058243933,-2356.99,0.00023561,2]
[341646847,1731058243942,-500.0,0.00023561,2]
[341646848,1731058243952,-500.0,0.00023561,2]
[341646849,1731058243961,-500.0,0.00023561,2]
[341646850,1731058243972,-500.0,0.00023561,2]
[341646851,1731058243983,-804.9,0.00023561,2]
[341646852,1731058243993,-3210.27,0.00023561,2]
[341646853,1731058244002,-293.19123785,0.00023561,2]
[341646854,1731058244013,-500.0,0.00023561,2]
[341646855,1731058244022,-500.0,0.00023561,2]
[341646856,1731058244031,-3186.19,0.00023561,2]
[341646857,1731058244042,-1290.16,0.00023833,2]
[341646858,1731058244051,-1290.16,0.00023834,2]
[341646859,1731058244060,-1290.16,0.00023834,2]
[341646860,1731058244069,-500.0,0.00023835,2]
[341646861,1731058244079,-282.0,0.00023835,2]
[341646862,1731058244089,-500.0,0.00023835,2]
[341646863,1731058244098,-500.0,0.00023835,2]
[341646864,1731058244107,-500.0,0.00023835,2]
[341646865,1731058244116,-1009.33,0.00023835,2]
[341646866,1731058244127,-500.0,0.00023835,2]
[341646867,1731058244136,-500.0,0.00023835,2]
[341646868,1731058244145,-500.0,0.00023835,2]
[341646869,1731058244155,-500.0,0.00023835,2]
[341646870,1731058244164,-894.65,0.00023835,2]
[341646871,1731058244174,-500.0,0.00023835,2]
[341646872,1731058244183,-500.0,0.00023835,2]
[341646873,1731058244192,-2111.02,0.00023835,2]
[341646874,1731058244203,-714.74,0.00023835,2]
[341646875,1731058244212,-6939.05,0.00023835,2]
[341646876,1731058244222,-6833.16,0.00023835,2]